bitfinex-derivatives/quotes_ETHF0:USTF0_20251001
["timestamp","ask_amount","ask_price","bid_price","bid_amount"]
[1759318212561,0.8002,4300.3,4300.2,3.6642]
[1759318212963,0.8002,4300.3,4300.2,3.2078]
[1759318213152,1.2958172,4300.3,4300.2,3.2078]
[1759318213659,0.2345,4299.9,4299.8,0.4121]
[1759318213957,0.8002,4299.9,4299.8,0.186]
[1759318214362,6.29571654,4299.9,4299.8,0.186]
[1759318215158,6.29571654,4299.9,4299.8,0.1053971]
[1759318215460,6.29571654,4299.9,4299.8,0.01009922]
[1759318216858,0.2345,4299.4,4299.3,0.00274606]
[1759318217162,1.29571654,4299.4,4299.3,0.00274606]
[1759318222269,0.8002,4299.4,4299.3,0.00274606]
[1759318222867,1.29460552,4299.4,4299.3,0.00274606]
[1759318230772,0.8002,4299.4,4299.3,0.00274606]
[1759318235280,1.29723678,4299.4,4299.3,0.00274606]
[1759318238583,1.29723678,4299.4,4299.3,0.21954606]
[1759318238985,1.29723678,4299.4,4299.3,0.00274606]
[1759318240787,1.29723678,4299.4,4299.3,0.21954606]
[1759318241287,1.29809174,4299.4,4299.3,0.44294606]
[1759318241984,1.29809174,4299.4,4299.3,0.21954606]
[1759318242381,1.29809174,4299.4,4299.3,0.00274606]
[1759318243985,1.29862504,4299.4,4299.3,0.00274606]
[1759318249889,1.29862504,4299.4,4299.3,0.76274606]
[1759318250093,0.49842504,4299.4,4299.3,5.76274606]
[1759318250688,0.49842504,4299.4,4299.3,5.99874606]
[1759318250997,1.06782504,4299.4,4299.3,5.99874606]
[1759318252383,1.28532504,4299.4,4299.3,5.76274606]
[1759318252693,1.28532504,4299.4,4299.3,0.76274606]
[1759318252892,1.28532504,4299.4,4299.3,0.44294606]
[1759318254386,1.28532504,4299.4,4299.3,0.76864606]
[1759318255496,0.49842504,4299.4,4299.3,5.76864606]
[1759318256502,0.49842504,4299.4,4299.3,46.56864606]
[1759318257003,0.0232,4299.6,4299.5,0.8866]
[1759318257194,0.0232,4299.6,4299.5,1.1226]
[1759318257496,0.4542,4300.0,4299.5,1.1226]
[1759318257696,1.03041987,4299.9,4299.8,0.76]
[1759318257892,1.03041987,4299.9,4299.8,0.996]
[1759318260696,0.0232,4300.1,4300.0,0.8866]
[1759318262597,0.13980968,4302.0,4300.0,5.5609]
[1759318262804,0.3197,4300.9,4300.4,0.4343]
[1759318263000,3.9593,4300.6,4300.5,0.236]
[1759318263206,1.24012904,4300.6,4300.5,0.236]
[1759318263602,0.359,4300.5,4300.4,0.2152]
[1759318263809,0.5694,4300.5,4300.1,3.2078]
[1759318264010,0.3197,4300.4,4300.1,3.4438]
[1759318264202,0.7515,4300.2,4300.1,3.659]
[1759318264699,0.7515,4300.2,4300.1,3.9847]
[1759318265807,0.7515,4300.2,4300.1,3.659]
[1759318266008,0.7515,4300.2,4300.1,3.2078]
[1759318266604,0.8891,4299.5,4299.4,3.7487]
[1759318266804,0.8891,4299.5,4299.4,3.9678]
[1759318267105,0.7515,4299.5,4299.4,3.9678]
[1759318267506,0.8891,4299.5,4299.4,3.9678]
[1759318267700,0.8891,4299.5,4299.4,3.6421]
[1759318267906,0.8891,4299.5,4299.4,3.659]
[1759318269006,0.5411,4299.5,4299.4,4.2038]
[1759318269214,0.8891,4300.0,4299.9,0.2152]
[1759318269407,1.37752144,4300.0,4299.9,0.2152]
[1759318269811,1.37752144,4300.0,4299.6,0.236]
[1759318270014,0.8891,4299.5,4299.4,3.2078]
[1759318270315,1.37752144,4299.5,4299.4,3.2078]
[1759318271709,1.37752144,4299.5,4299.3,0.00274606]
[1759318272009,1.23992144,4299.4,4299.3,0.21794606]
[1759318272208,1.23992144,4299.4,4299.3,0.00274606]
[1759318272610,1.23992144,4299.4,4299.3,0.54364606]
[1759318273513,1.23992144,4299.4,4299.3,0.76274606]
[1759318274412,0.3197,4299.8,4299.3,0.43704606]
[1759318274608,0.48861428,4299.7,4299.6,0.76]
[1759318274917,0.80831428,4299.7,4299.6,0.76]
[1759318275618,0.48861428,4299.7,4299.6,0.76]
[1759318276410,0.3197,4300.4,4300.3,0.4343]
[1759318276611,0.8083046,4300.4,4300.3,0.996]
[1759318276807,0.4886046,4300.4,4300.3,0.996]
[1759318277913,3.231,4301.0,4300.3,5.6703]
[1759318278106,0.0232,4301.0,4300.9,0.4343]
[1759318278306,0.3197,4301.3,4300.9,0.996]
[1759318278513,0.5411,4301.1,4301.0,0.76]
[1759318278712,1.02941312,4301.1,4301.0,0.76]
[1759318278918,1.23981312,4301.1,4301.0,0.76]
[1759318279420,0.7515,4301.1,4301.0,0.76]
[1759318280714,0.43,4301.0,4300.7,3.2078]
[1759318280919,0.7353,4300.8,4300.7,3.2078]
[1759318281321,1.2232971,4300.8,4300.7,3.2078]
[1759318281617,0.7353,4300.8,4300.7,3.2078]
[1759318282420,1.22328029,4300.8,4300.7,3.2078]
[1759318284020,1.22328029,4300.8,4300.7,3.4322]
[1759318286222,1.22328029,4300.8,4300.7,3.9764]
[1759318286521,1.22328029,4300.8,4300.7,3.4322]
[1759318287323,1.22328029,4300.8,4300.7,3.2078]
[1759318287621,1.22328029,4300.8,4300.7,3.9764]
[1759318290423,1.22328029,4300.8,4300.7,3.6394]
[1759318291024,1.22328029,4300.8,4300.7,3.4322]
[1759318291221,1.22328029,4300.8,4300.7,3.2078]
[1759318291427,0.8671,4300.5,4300.4,0.186]
[1759318292321,1.36810836,4300.5,4300.4,0.186]
[1759318294528,0.1332,4300.0,4299.9,0.2244]
[1759318294828,0.8671,4300.0,4299.9,0.2244]
[1759318295430,1.36816083,4300.0,4299.9,0.7686]
[1759318296023,1.36816083,4300.0,4299.9,0.4316]
[1759318296924,0.4226,4299.7,4299.6,0.5614]
[1759318297118,0.7339,4299.7,4299.6,0.5614]
[1759318297318,0.7339,4299.7,4299.6,0.7686]
[1759318297828,0.5242,4299.7,4299.6,0.7686]
[1759318299733,0.7339,4299.7,4299.6,0.7686]
[1759318300027,0.7339,4299.7,4299.6,0.4316]
[1759318301330,0.7339,4299.7,4299.6,0.7686]
[1759318312841,0.7339,4299.7,4299.6,0.4316]
[1759318313041,0.7339,4299.7,4299.6,0.2244]
[1759318313234,1.23047453,4299.7,4299.6,0.2244]
[1759318313430,0.77,4299.4,4299.3,3.60304606]
[1759318313634,1.26657453,4299.4,4299.3,0.18874606]
[1759318313834,1.26657453,4299.4,4299.3,0.00274606]
[1759318314436,6.26657453,4299.4,4299.3,0.00274606]
[1759318314744,0.77,4298.9,4298.8,3.2078]
[1759318314937,1.26657453,4298.9,4298.8,3.2078]
[1759318315539,1.26657453,4298.9,4298.8,3.21064974]
[1759318315540,1.26902127,4298.9,4298.8,3.21064974]
[1759318317844,1.26902127,4298.9,4298.8,0.00284974]
[1759318321846,1.26902127,4298.9,4298.8,0.20934974]
[1759318322042,1.26902127,4298.9,4298.8,0.75044974]
[1759318322248,0.49902127,4298.9,4298.8,0.75044974]
[1759318322839,0.83222127,4298.9,4298.8,0.75044974]
[1759318323747,0.49902127,4298.9,4298.8,0.75044974]
[1759318324751,0.00244674,4298.9,4298.8,0.75044974]
[1759318325149,0.55234674,4298.9,4298.8,0.75044974]
[1759318325449,0.77244674,4298.9,4298.8,0.75044974]
[1759318325851,1.26849444,4298.9,4298.8,0.41564974]
[1759318326547,0.77244674,4298.9,4298.8,0.41564974]
[1759318326758,1.26849793,4298.9,4298.8,0.41564974]
[1759318327145,1.26849793,4298.9,4298.8,0.00284974]
[1759318329546,1.50449793,4298.9,4298.8,0.00284974]
[1759318330249,1.50449793,4298.9,4298.8,0.20934974]
[1759318330742,1.50449793,4298.9,4298.8,0.00284974]
[1759318333548,6.50449793,4298.9,4298.6,0.1861]
[1759318333756,3.9778,4298.7,4298.6,0.10414015]
[1759318333954,4.47385119,4298.7,4297.7,3.4438]
[1759318334152,0.2167,4297.9,4297.8,0.7476]
[1759318334456,0.5499,4297.9,4297.8,0.7476]
[1759318334658,0.5499,4297.9,4297.8,0.75005393]
[1759318335854,0.77,4297.9,4297.8,0.75005393]
[1759318336847,0.3332,4298.4,4297.9,0.3348]
[1759318337053,0.77,4298.4,4298.3,0.5413]
[1759318337248,1.26610701,4298.4,4298.3,0.7476]
[1759318337958,3.541,4298.7,4298.3,0.7476]
[1759318338154,0.49609478,4298.6,4298.5,0.5577]
[1759318338361,0.00244674,4298.9,4298.8,0.4275]
[1759318338555,0.49860379,4298.9,4298.8,0.7367]
[1759318339655,0.00244674,4298.9,4298.8,0.7367]
[1759318339961,0.33464674,4298.9,4298.8,0.7367]
[1759318340159,0.00244674,4298.9,4298.8,0.7367]
[1759318341660,0.00244674,4298.9,4298.8,5.7367]
[1759318342761,0.0232,4299.2,4299.1,0.7367]
[1759318343156,0.3322,4299.8,4299.1,0.4275]
[1759318343358,1.02951077,4299.7,4299.6,0.747]
[1759318343562,1.24891077,4299.7,4299.6,0.747]
[1759318343764,1.03194322,4299.7,4299.6,0.747]
[1759318345056,0.00243248,4299.7,4299.6,3.9548]
[1759318345262,0.3262,4300.3,4300.0,0.127]
[1759318345564,3.2078,4300.5,4300.4,0.747]
[1759318345958,4.1011,4300.5,4300.0,0.3103]
[1759318346158,4.1011,4300.5,4300.1,0.236]
[1759318346460,0.00274989,4300.5,4300.4,0.747]
[1759318349162,3.7543,4301.6,4301.5,0.747]
[1759318349355,0.5465,4301.6,4301.5,0.747]
[1759318350064,0.76801153,4301.6,4301.5,0.74877467]
[1759318351865,0.00211153,4301.6,4301.5,0.74877467]
[1759318352067,0.54861153,4301.6,4301.5,0.74877467]
[1759318352264,0.76801153,4301.6,4301.5,0.00177467]
[1759318352467,9.21181153,4301.6,4300.9,3.2078]
[1759318352764,0.8933,4301.0,4300.9,3.2078]
[1759318353062,0.8933,4301.0,4300.4,3.4438]
[1759318353271,0.8933,4300.5,4300.4,3.6668]
[1759318353457,0.8933,4300.5,4300.4,3.4308]
[1759318353663,0.5465,4300.5,4300.4,3.95706656]
[1759318353967,0.3262,4300.9,4300.5,0.3103]
[1759318354263,0.5465,4300.9,4300.8,0.747]
[1759318354470,0.3262,4301.4,4300.9,0.3103]
[1759318354669,0.5903,4301.5,4301.4,0.747]
[1759318354966,0.4629,4301.5,4301.4,0.747]
[1759318355166,0.7891,4301.5,4301.4,0.747]
[1759318356567,0.00211153,4301.6,4301.5,0.8741]
[1759318358571,0.00211153,4301.6,4301.5,5.8741]
[1759318359473,0.00211153,4301.6,4301.5,0.8741]
[1759318360172,0.0232,4301.8,4301.5,5.8741]
[1759318360377,0.0232,4301.8,4301.7,3.9548]
[1759318360772,3.2078,4302.7,4302.6,0.747]
[1759318361173,3.20986453,4302.7,4302.6,0.747]
[1759318361879,3.97576453,4302.7,4302.6,0.747]
[1759318362182,3.97576453,4302.7,4302.6,0.983]
[1759318362379,3.75636453,4302.7,4302.6,0.983]
[1759318363685,3.97576453,4302.7,4302.6,0.983]
[1759318366178,3.75636453,4302.7,4302.6,0.983]
[1759318367482,0.54856453,4302.7,4302.6,0.983]
[1759318368082,0.00206453,4302.7,4302.6,0.983]
[1759318368879,0.3262,4303.3,4302.7,0.3103]
[1759318369076,0.3262,4303.3,4302.6,5.4497]
[1759318369077,0.5697,4303.5,4303.4,0.4367]
[1759318369385,0.5465,4303.5,4303.4,0.983]
[1759318369880,0.89575234,4303.5,4303.4,0.747]
[1759318370183,0.76835234,4303.5,4303.4,0.983]
[1759318370580,0.3262,4303.4,4303.1,40.8]
[1759318370886,0.5465,4303.2,4303.1,40.8]
[1759318371092,0.5465,4303.2,4303.1,41.035]
[1759318372181,0.5465,4303.2,4303.1,41.3453]
[1759318372788,0.5465,4303.2,4303.1,41.035]
[1759318373585,0.5465,4303.2,4303.1,41.3476]
[1759318373883,0.86065234,4303.5,4303.4,0.4387]
[1759318374088,0.7308,4303.3,4303.2,0.235]
[1759318374483,0.7308,4303.3,4303.2,0.4493]
[1759318374787,0.7308,4303.3,4303.2,0.7619]
[1759318374976,0.7308,4303.3,4303.2,0.9863]
[1759318375680,0.5275,4303.3,4303.2,0.9863]
[1759318376076,0.32085234,4303.5,4303.4,0.2143]
[1759318376282,0.00245234,4303.5,4303.4,0.7513]
[1759318377982,0.52995234,4303.5,4303.4,0.7513]
[1759318378187,0.86425234,4303.5,4303.4,0.4493]
[1759318378785,0.86425234,4303.5,4303.4,0.235]
[1759318379989,0.86425234,4303.5,4303.1,0.3126]
[1759318380185,0.86425234,4303.5,4303.2,0.235]
[1759318380391,0.52995234,4303.5,4303.4,0.7513]
[1759318380586,0.00245234,4303.5,4303.4,0.7513]
[1759318381479,0.52995234,4303.5,4303.4,0.7513]
[1759318382187,0.73325234,4303.5,4303.4,0.7513]
[1759318382387,0.86425234,4303.5,4303.4,0.9863]
[1759318382584,0.86425234,4303.5,4303.4,0.2143]
[1759318382789,0.86425234,4303.5,4303.4,0.4493]
[1759318383196,0.86425234,4303.5,4303.4,0.235]
[1759318383687,0.86425234,4303.5,4303.4,0.4493]
[1759318383892,0.86425234,4303.5,4303.4,0.9863]
[1759318384991,0.86425234,4303.5,4303.4,0.7513]
[1759318386100,0.86425234,4303.5,4303.4,0.2143]
[1759318386691,0.3184,4303.4,4303.0,3.2078]
[1759318386894,0.8618,4303.0,4302.9,0.1859]
[1759318387389,0.3184,4302.9,4302.5,3.2078]
[1759318387594,0.7308,4302.6,4302.5,3.4221]
[1759318387795,0.7308,4302.6,4302.5,3.2078]
[1759318388997,0.131,4303.0,4302.5,4.009]
[1759318388998,0.3184,4302.9,4302.5,4.009]
[1759318389196,0.5275,4302.9,4302.8,0.7513]
[1759318389504,1.00965485,4302.9,4302.8,0.9863]
[1759318389998,1.21295485,4302.9,4302.5,3.2078]
[1759318390203,0.131,4303.0,4302.5,3.2078]
[1759318390204,0.4124,4302.6,4302.5,3.4221]
[1759318390405,0.3184,4303.0,4302.5,4.009]
[1759318390604,0.48229909,4302.9,4302.8,0.7513]
[1759318390900,0.66095234,4303.5,4303.4,0.4387]
[1759318391099,1.14319932,4303.5,4303.4,0.7513]
[1759318391399,1.34649932,4303.5,4303.4,0.7513]
[1759318391599,1.34649932,4303.5,4303.4,0.4387]
[1759318391900,0.7308,4303.1,4303.0,3.2078]
[1759318392107,0.4124,4302.9,4302.8,0.235]
[1759318392299,0.7308,4302.9,4302.8,0.235]
[1759318392607,0.7308,4302.9,4302.8,0.4493]
[1759318392904,0.7308,4302.9,4302.8,0.235]
[1759318393098,0.7308,4302.9,4302.8,0.4493]
[1759318393295,0.7308,4302.9,4302.8,0.9863]
[1759318393599,0.7308,4302.9,4302.8,0.6737]
[1759318393806,0.7308,4302.9,4302.8,0.4493]
[1759318394007,0.7308,4302.9,4302.8,0.9863]
[1759318394702,0.3184,4303.4,4302.9,0.3126]
[1759318394908,1.00996727,4303.3,4303.2,0.7513]
[1759318395304,1.21326727,4303.3,4303.2,0.3126]
[1759318395509,0.8618,4303.0,4302.9,4.1941]
[1759318395911,0.5275,4303.0,4302.9,4.1941]
[1759318396306,0.13345234,4303.5,4302.9,4.1941]
[1759318396501,0.5275,4303.3,4303.2,0.4387]
[1759318396707,1.21337419,4303.3,4303.2,0.4387]
[1759318397008,1.21337419,4303.3,4303.1,0.235]
[1759318397208,0.8618,4303.0,4302.9,3.6571]
[1759318397405,0.8618,4303.0,4302.9,4.1941]
[1759318397608,0.8618,4303.0,4302.9,3.8815]
[1759318398413,0.8618,4303.0,4302.9,3.6571]
[1759318398913,0.8618,4303.0,4302.9,3.4221]
[1759318399310,0.5439,4303.3,4303.2,0.2166]
[1759318399613,1.02659711,4303.3,4303.2,0.7652]
[1759318400012,1.23309711,4303.3,4303.2,0.7652]
[1759318400211,0.7504,4303.3,4303.2,0.7652]
[1759318400402,0.13345234,4303.5,4303.1,0.235]
[1759318400403,0.00245234,4303.5,4303.4,0.2166]
[1759318400609,0.21635234,4303.5,4303.4,0.7652]
[1759318400814,0.88685234,4303.5,4303.4,0.432]
[1759318401711,0.8844,4303.0,4302.9,3.2078]
[1759318401911,0.8844,4303.0,4302.9,3.4244]
[1759318402111,0.8844,4303.0,4302.9,3.2078]
[1759318403219,0.8844,4303.0,4302.9,3.4244]
[1759318403718,0.8844,4303.0,4302.9,3.2078]
[1759318404723,0.8844,4303.0,4302.9,3.4276]
[1759318405522,0.8844,4303.0,4302.9,3.2078]
[1759318406018,0.8844,4303.0,4302.6,0.235]
[1759318407119,0.55,4302.5,4302.4,1.24905086]
[1759318407421,0.734,4302.4,4302.3,3.9756]
[1759318407621,0.734,4302.4,4302.3,4.1954]
[1759318408012,0.734,4302.9,4302.8,0.2198]
[1759318408216,1.21130421,4302.9,4302.8,0.2198]
[1759318409015,1.21130421,4302.9,4302.5,0.235]
[1759318409216,0.8669,4302.5,4302.4,0.2198]
[1759318409918,0.55,4302.5,4302.3,3.2078]
[1759318410118,0.734,4302.4,4302.3,3.2078]
[1759318410323,0.734,4302.4,4302.3,3.6522]
[1759318410512,0.734,4302.4,4302.3,3.9604]
[1759318413422,0.734,4302.4,4302.3,3.4276]
[1759318413929,1.21135478,4302.4,4302.1,0.1859]
[1759318414227,0.734,4302.2,4302.1,0.1859]
[1759318414425,1.21135478,4302.2,4302.1,0.1859]
[1759318414621,0.1329,4302.0,4301.2,4.76505086]
[1759318414824,0.3405,4301.5,4301.4,0.2198]
[1759318415036,0.55,4301.5,4301.2,3.2078]
[1759318415422,0.734,4301.3,4301.2,3.2078]
[1759318415628,0.734,4301.3,4301.2,3.4276]
[1759318416125,0.734,4301.3,4301.2,3.2078]
[1759318416927,0.734,4300.9,4300.8,0.48047]
[1759318417232,0.734,4300.9,4300.8,0.02567]
[1759318418325,0.734,4300.9,4300.8,0.24547]
[1759318418526,0.3169,4301.4,4300.9,0.3082]
[1759318418727,0.2095,4301.5,4301.4,0.3082]
[1759318418931,0.5264,4301.5,4301.4,0.9876]
[1759318419232,0.0232,4301.7,4301.6,0.7526]
[1759318419931,0.0232,4301.7,4301.6,0.9886]
[1759318420133,3.5247,4302.4,4301.6,0.6804]
[1759318420328,3.5247,4302.4,4302.3,0.2198]
[1759318420329,3.9418,4302.4,4302.3,0.2198]
[1759318420543,3.9418,4302.4,4302.3,0.7526]
[1759318420936,3.9418,4302.4,4302.3,0.2198]
[1759318421131,3.9418,4302.4,4301.8,0.3082]
[1759318421330,3.9418,4302.4,4301.6,0.7526]
[1759318421331,0.5245,4301.7,4301.6,0.7526]
[1759318421534,0.734,4301.7,4301.6,0.7526]
[1759318422129,0.734,4301.7,4301.6,0.2198]
[1759318422324,0.8669,4301.5,4301.4,3.4276]
[1759318422531,0.8669,4301.5,4301.4,3.9604]
[1759318422740,0.5264,4301.5,4301.4,3.9604]
[1759318422931,0.5264,4301.9,4301.8,0.2198]
[1759318423236,0.5264,4301.9,4301.8,0.7526]
[1759318423237,0.734,4301.9,4301.8,0.7526]
[1759318423429,0.2095,4301.9,4301.8,0.7526]
[1759318423636,0.5264,4301.9,4301.8,0.7526]
[1759318424737,0.734,4301.9,4301.8,0.4444]
[1759318425848,0.734,4301.9,4301.8,0.7526]
[1759318426241,0.0232,4302.3,4301.8,0.7526]
[1759318426544,0.5264,4302.0,4301.9,0.5328]
[1759318426744,0.734,4302.0,4301.9,0.7526]
[1759318427244,0.8669,4302.0,4301.9,0.7526]
[1759318430354,0.8669,4302.0,4301.7,0.1859]
[1759318430954,0.8669,4302.0,4301.7,0.4941]
[1759318431149,0.3169,4301.9,4301.8,0.2198]
[1759318431356,0.734,4301.9,4301.8,0.2198]
[1759318435256,0.5264,4301.9,4301.8,0.7412]
[1759318435558,0.7295,4301.9,4301.8,0.2198]
[1759318437753,0.7295,4301.9,4301.8,0.7412]
[1759318438254,0.3383,4302.2,4302.1,0.427]
[1759318438455,0.5459,4302.2,4302.1,0.7331]
[1759318438858,0.749,4302.2,4302.1,0.7331]
[1759318439361,1.22881227,4302.2,4302.1,0.7331]
[1759318439856,0.749,4302.2,4302.1,0.7331]
[1759318440258,0.2076,4302.2,4302.1,0.7331]
[1759318440459,0.3383,4302.3,4302.2,0.3061]
[1759318440762,1.02575637,4302.3,4302.2,0.7331]
[1759318441064,0.3383,4302.8,4302.3,0.3061]
[1759318441255,0.749,4302.8,4302.7,0.7331]
[1759318441453,0.749,4302.8,4302.0,1.61225086]
[1759318441454,0.1302,4302.5,4302.1,0.4477]
[1759318441655,0.4107,4302.2,4302.1,0.9691]
[1759318442063,0.749,4302.2,4302.1,0.9691]
[1759318442561,0.0232,4302.4,4302.1,0.9691]
[1759318442866,0.0232,4302.4,4302.3,0.7331]
[1759318443769,3.2078,4302.9,4302.8,0.7331]
[1759318444266,3.7537,4302.9,4302.8,0.7331]
[1759318445764,3.9568,4302.9,4302.8,0.7331]
[1759318446366,0.3383,4302.8,4302.2,0.5421]
[1759318446570,0.5459,4302.3,4302.2,0.9691]
[1759318446771,0.749,4302.3,4302.2,0.9691]
[1759318447073,0.3383,4302.8,4302.2,0.663]
[1759318447271,0.5459,4302.8,4302.7,0.7331]
[1759318447472,3.5461,4302.9,4302.8,0.3061]
[1759318447771,3.7537,4302.9,4302.8,0.7331]
[1759318448066,0.3383,4303.4,4302.9,0.3061]
[1759318448270,1.02532458,4303.3,4303.2,0.7331]
[1759318448771,0.47942458,4303.3,4303.2,0.7331]
[1759318448972,0.3383,4303.4,4303.3,0.3061]
[1759318449171,1.02538758,4303.4,4303.3,0.7331]
[1759318449371,1.22848758,4303.4,4303.3,0.7331]
[1759318449871,1.22848758,4303.4,4303.3,0.427]
[1759318450070,1.22848758,4303.4,4303.3,0.2117]
[1759318450569,0.8792,4303.0,4302.9,0.5178]
[1759318450767,0.8792,4303.0,4302.9,0.7331]
[1759318451462,0.8792,4303.0,4302.7,0.236]
[1759318451766,0.2076,4302.6,4302.5,3.6545]
[1759318451973,0.5459,4302.6,4302.5,4.1759]
[1759318453471,0.3383,4303.2,4302.8,0.427]
[1759318453666,0.5459,4303.2,4303.1,0.7331]
[1759318454570,0.749,4303.2,4303.1,0.7331]
[1759318454773,0.749,4303.2,4303.1,0.2117]
[1759318454962,0.5459,4303.2,4303.1,0.7331]
[1759318456467,0.3383,4303.4,4303.1,0.427]
[1759318456673,0.3383,4303.4,4303.1,0.2117]
[1759318456869,0.4107,4303.2,4303.1,0.2117]
[1759318457075,0.5409,4303.0,4302.9,0.1859]
[1759318457275,0.8792,4303.0,4302.9,0.1859]
[1759318457673,0.8792,4303.0,4302.9,0.3976]
[1759318458277,0.8792,4303.0,4302.9,0.2117]
[1759318459175,0.8792,4303.0,4302.8,0.236]
[1759318459876,0.8792,4303.0,4302.5,3.2078]
[1759318459877,0.7566,4302.6,4302.5,3.2078]
[1759318460473,0.7566,4302.6,4302.5,3.4198]
[1759318460873,0.7566,4302.6,4302.5,3.2078]
[1759318461380,0.7566,4302.6,4302.5,3.4198]
[1759318462277,0.7566,4302.6,4302.5,3.9437]
[1759318462475,0.3306,4302.9,4302.5,3.6375]
[1759318462672,0.3306,4303.4,4302.8,0.4297]
[1759318462970,3.52615234,4303.5,4302.9,0.7359]
[1759318462971,0.5502,4303.0,4302.9,0.7359]
[1759318464283,0.2196,4303.0,4302.9,0.7359]
[1759318464484,3.34315234,4303.5,4302.9,0.7359]
[1759318464678,0.3362,4303.4,4303.0,0.3061]
[1759318464878,0.2078,4303.1,4303.0,0.2232]
[1759318465079,0.544,4303.1,4303.0,0.7383]
[1759318465385,0.7496,4303.1,4303.0,0.7383]
[1759318465985,0.7496,4302.8,4302.7,0.444]
[1759318466387,0.7496,4302.8,4302.7,0.9733]
[1759318466983,0.544,4302.8,4302.7,0.9733]
[1759318467178,3.34315234,4303.5,4302.7,0.9733]
[1759318467378,0.81505106,4303.4,4303.3,0.209]
[1759318467683,1.22845106,4303.4,4303.3,0.4322]
[1759318468283,1.22845106,4303.4,4302.9,0.3061]
[1759318468482,1.22845106,4303.4,4303.3,0.209]
[1759318468483,0.7496,4303.4,4303.3,0.209]
[1759318468683,1.22880442,4303.4,4303.3,0.209]
[1759318468888,1.22880442,4303.4,4302.8,0.3061]
[1759318469086,0.544,4302.9,4302.8,0.7383]
[1759318469888,0.7496,4302.9,4302.8,0.6672]
[1759318470289,0.7496,4302.9,4302.8,0.9733]
[1759318470488,0.7496,4302.9,4302.8,0.7383]
[1759318470689,0.7496,4302.9,4302.8,0.9733]
[1759318470885,0.544,4302.9,4302.8,0.9733]
[1759318471590,0.7496,4302.9,4302.8,0.9733]
[1759318471790,0.4134,4303.4,4303.3,0.4322]
[1759318471990,1.22910047,4303.4,4303.3,0.7383]
[1759318473091,0.544,4303.4,4303.3,0.7383]
[1759318473787,0.00245234,4303.5,4303.3,0.7383]
[1759318473988,0.00245234,4303.5,4303.4,0.7383]
[1759318474295,1.02607607,4303.5,4303.4,0.7383]
[1759318476889,1.36547607,4303.5,4303.4,0.4322]
[1759318477289,1.36547607,4303.5,4303.4,0.7383]
[1759318479202,1.02607607,4303.5,4303.4,0.7383]
[1759318479393,0.544,4303.4,4303.3,3.9461]
[1759318479695,0.54645234,4303.5,4303.4,0.7383]
[1759318479895,1.02595349,4303.5,4303.4,0.7383]
[1759318480287,0.00245234,4303.5,4303.4,0.7383]
[1759318480996,0.0232,4304.1,4304.0,0.4322]
[1759318480997,0.231,4304.1,4304.0,0.4322]
[1759318481293,1.22898514,4304.1,4304.0,0.4322]
[1759318482100,1.23179544,4304.1,4304.0,0.43441867]
[1759318482998,0.0028103,4304.1,4304.0,0.86781867]
[1759318484302,0.7524103,4304.1,4304.0,0.74051867]
[1759318484499,0.7524103,4304.1,4304.0,0.23721867]
[1759318484691,0.7524103,4304.1,4304.0,0.00221867]
[1759318484901,1.23126515,4304.1,4304.0,0.00221867]
[1759318486004,6.23126515,4304.1,4303.8,0.1858]
[1759318486205,0.7496,4303.9,4303.8,0.1858]
[1759318486402,1.22845485,4303.9,4303.8,0.1858]
[1759318487101,1.22845485,4303.9,4303.8,0.18789295]
[1759318489308,0.7496,4303.9,4303.8,0.92619295]
[1759318489597,0.7496,4303.9,4303.8,0.62009295]
[1759318489805,0.7496,4303.9,4303.8,0.00209295]
[1759318495702,6.22838246,4303.9,4303.8,0.00209295]
[1759318497102,6.22838246,4303.9,4303.6,0.1858]
[1759318497300,0.2228,4303.7,4303.6,0.1858]
[1759318497498,1.24108246,4303.7,4303.6,0.1858]
[1759318497699,0.887,4303.0,4302.9,3.2078]
[1759318497901,0.887,4303.0,4302.9,3.21001544]
[1759318498099,0.887,4303.0,4302.9,0.00221544]
[1759318499309,1.36592194,4303.0,4302.9,0.00221544]
[1759318502608,1.55356604,4303.0,4302.9,0.00221544]
[1759318502810,1.36592194,4303.0,4302.9,0.00221544]
[1759318503209,0.887,4303.0,4302.9,0.00221544]
[1759318504009,0.1247,4302.0,4301.9,3.2078]
[1759318504311,0.887,4302.0,4301.9,3.2078]
[1759318504511,0.887,4302.0,4301.9,3.4314]
[1759318505111,0.887,4302.0,4301.9,3.4340238]
[1759318506309,0.5444,4302.0,4301.9,3.9689238]
[1759318506509,0.1247,4302.5,4302.4,0.7585]
[1759318506510,0.3216,4302.5,4302.4,0.7585]
[1759318506715,0.1247,4303.0,4302.4,0.7585]
[1759318506915,0.5444,4302.9,4302.8,0.7585]
[1759318507312,0.2228,4302.9,4302.8,0.7585]
[1759318507616,0.887,4303.5,4303.4,0.445]
[1759318507810,0.887,4303.5,4303.4,0.7585]
[1759318508111,0.887,4303.5,4303.4,0.2236]
[1759318508616,0.887,4303.5,4303.0,0.3135]
[1759318508817,0.887,4303.5,4302.6,0.235]
[1759318509012,0.5444,4303.5,4303.4,0.7585]
[1759318509519,0.2228,4303.5,4303.4,0.7585]
[1759318509816,0.5444,4303.5,4303.4,0.7585]
[1759318510014,0.2228,4303.5,4303.4,0.7585]
[1759318510219,3.2078,4303.8,4303.7,0.7585]
[1759318510519,3.9701,4303.8,4303.7,0.445]
[1759318511416,3.7522,4303.8,4303.7,0.7585]
[1759318511613,3.2078,4303.8,4303.7,0.7585]
[1759318512213,3.9701,4303.8,4303.7,0.7585]
[1759318512412,3.9701,4303.8,4303.7,0.445]
[1759318513115,0.7623,4303.8,4303.7,0.445]